fUSD/lending_fUSD_20241110
["ID","MTS","AMOUNT","RATE_DAILY","PERIOD"]
[341909996,1731278912374,-2289.82,0.00014849,2]
[341909997,1731278912419,-2289.82,0.00014849,2]
[341909998,1731278912465,-2289.82,0.00014849,2]
[341909999,1731278912510,-2289.82,0.00014849,2]
[341910000,1731278912555,-2289.82,0.00014849,2]
[341910001,1731278912600,-2289.82,0.00014849,2]
[341910002,1731278912649,-2290.0329848,0.00014849,2]
[341910003,1731278912693,-500.0,0.00014849,2]
[341910004,1731278912736,-1196140.39,0.0001485,2]
[341910005,1731278912780,-151.0,0.0001485,2]
[341910006,1731278912825,-151.0,0.0001485,2]
[341910007,1731278912868,-167.53514353,0.00014859,2]
[341910008,1731278912912,-378.40847916,0.00014873,2]
[341910009,1731278912951,-500.0,0.00014873,2]
[341910010,1731278912992,-500.0,0.00014873,2]
[341910011,1731278913037,-500.0,0.00014873,2]
[341910012,1731278913079,-500.0,0.00014873,2]
[341910013,1731278913126,-500.0,0.00014873,2]
[341910014,1731278913170,-162.3293034,0.00014873,2]
[341910015,1731278913211,-500.0,0.00014873,2]
[341910016,1731278913255,-500.0,0.00014873,2]
[341910017,1731278913300,-460.30144151,0.00014873,2]
[341910018,1731278913345,-500.0,0.00014873,2]
[341910019,1731278913391,-500.0,0.00014873,2]
[341910020,1731278913436,-398.12281834,0.00014873,2]
[341910021,1731278913481,-500.0,0.00014873,2]
[341910022,1731278913526,-168.17965361,0.00014873,2]
[341910023,1731278913572,-160.36400873,0.00014873,2]
[341910024,1731278913616,-162.19328966,0.00014899,2]
[341910025,1731278913660,-2971.09225383,0.00014899,2]
[341910026,1731278913705,-167.53514353,0.00014899,2]
[341910027,1731278913750,-5924.0,0.00014934,2]
[341910028,1731278913798,-242.568,0.00014934,2]
[341910029,1731278913953,-1158.0,0.00014934,2]
[341910030,1731278914003,-631.0,0.00014934,2]
[341910031,1731278914045,-9257.046,0.00014934,2]
[341910032,1731278914091,-2644.034,0.00014934,2]
[341910033,1731278914137,-1558.5013134,0.0001498,2]
[341910034,1731278914185,-3713.7804062,0.0001498,2]
[341910035,1731278914234,-500.0,0.0001499,2]
[341910036,1731278914278,-150.0,0.0001499,2]
[341910037,1731278914334,-166.11476711,0.0001499,2]
[341910038,1731278914378,-155.287207,0.0001499,2]
[341910039,1731278914420,-197.96868723,0.0001499,2]
[341910040,1731278914461,-1451.0753993,0.0001499,2]
[341910041,1731278914502,-1343.6494852,0.0001499,2]
[341910042,1731278914546,-1236.2235711,0.0001499,2]
[341910043,1731278914587,-1128.7976571,0.0001499,2]
[341910044,1731278914628,-3457.7932913,0.0001499,2]
[341910045,1731278914670,-3201.8061764,0.0001499,2]
[341910046,1731278914711,-2945.8190615,0.0001499,2]
[341910047,1731278914751,-2689.8319466,0.0001499,2]
[341910048,1731278914794,-549.0,0.0001499,2]
[341910049,1731278914838,-150.0,0.0001499,2]
[341910050,1731278914880,-646.0,0.0001499,2]
[341910051,1731278914923,-500.0,0.0001499,2]
[341910052,1731278914966,-150.0,0.0001499,2]
[341910053,1731278915007,-1065.0,0.0001499,2]
[341910054,1731278915048,-200.0,0.00014993,2]
[341910055,1731278915089,-200.0,0.00014994,2]
[341910056,1731278915133,-512840.05450657,0.00014995,2]
[341910057,1731278915176,-13379.12348844,0.00014995,2]
[341910058,1731278915217,-1702093.92899798,0.00014995,2]
[341910059,1731278915260,-151.0,0.00014995,2]
[341910060,1731278915304,-151.0,0.00014995,2]
[341910061,1731278915353,-1000.0,0.00014998,2]
[341910062,1731278915401,-1000.0,0.00014998,2]
[341910063,1731278915442,-1000.0,0.00014999,2]
[341910064,1731278915483,-1000.0,0.00014999,2]
[341910065,1731278915524,-1000.0,0.00014999,2]
[341910066,1731278915568,-17774303.18,0.00014999,2]
[341910067,1731278915611,-2000.0,0.00014999,2]
[341910068,1731278915655,-2278.2410336,0.00014999,2]
[341910069,1731278915696,-918.73713117,0.00014999,2]
[341910070,1731278915738,-1000.0,0.00014999,2]
[341910071,1731278915780,-2000.0,0.00014999,2]
[341910072,1731278915821,-1000.0,0.00014999,2]
[341910073,1731278915863,-1000.0,0.00014999,2]
[341910074,1731278915910,-500.0,0.00014999,2]
[341910075,1731278915955,-2000.0,0.00014999,2]
[341910076,1731278915995,-500.0,0.00014999,2]
[341910077,1731278916039,-40286418.05112428,0.00015,2]
[341910094,1731279032093,-250.0,0.00013748,2]
[341910095,1731279032103,-300.0,0.000139,5]
[341910096,1731279032113,-600.0,0.00014,5]
[341910097,1731279032123,-1000.0,0.000141,5]
[341910098,1731279032132,-1300.0,0.000142,5]
[341910099,1731279032142,-1700.0,0.000143,5]
[341910100,1731279032151,-300.0,0.000144,5]
[341910101,1731279032160,-300.0,0.000145,5]
[341910102,1731279032170,-300.0,0.000146,5]
[341910103,1731279032180,-286.54304953,0.00014618,2]
[341910104,1731279032190,-286.54304948,0.00014649,2]
[341910105,1731279032200,-286.54304948,0.0001468,2]
[341910106,1731279032214,-11184.2604,0.00014689,2]
[341910107,1731279032224,-300.0,0.000147,5]
[341910108,1731279032233,-286.54304948,0.00014712,2]
[341910109,1731279032244,-300.0,0.00014715,2]
[341910110,1731279032255,-500.0,0.00014716,2]
[341910111,1731279032265,-500.0,0.00014716,2]
[341910112,1731279032274,-12.78140359,0.00014716,2]
[341910113,1731279032286,-353.76009623,0.00014716,2]
[341910114,1731279032427,-133.45850018,0.00014716,2]
[341910115,1731279032437,-593.3,0.00014716,2]
[341910116,1731279032447,-805.05,0.00014716,2]
[341910117,1731279032456,-488.30612992,0.00014716,2]
[341910148,1731279038076,-28289.971123,0.00014688,2]
[341910149,1731279038087,-671.671,0.00014688,2]
[341910150,1731279038098,-71038.357877,0.00014688,2]
[341910151,1731279038107,-3897.60387008,0.00014716,2]
[341910152,1731279038116,-4385.91,0.00014716,2]
[341910153,1731279038125,-500.0,0.00014716,2]
[341910154,1731279038134,-500.0,0.00014716,2]
[341910155,1731279038143,-330.12825296,0.00014716,2]
[341910156,1731279038155,-52.02552152,0.00014716,2]
[341910157,1731279038163,-2275.64,0.00014716,2]
[341910158,1731279038172,-500.0,0.00014716,2]
[341910159,1731279038181,-500.0,0.00014716,2]
[341910160,1731279038191,-500.0,0.00014716,2]
[341910161,1731279038199,-1732.47,0.00014716,2]
[341910162,1731279038209,-500.0,0.00014716,2]
[341910163,1731279038218,-500.0,0.00014716,2]
[341910164,1731279038227,-187.525,0.00014716,2]
[341910165,1731279038237,-500.0,0.00014716,2]
[341910166,1731279038247,-1824.39,0.00014716,2]
[341910167,1731279038256,-1824.39,0.00014716,2]
[341910168,1731279038265,-500.0,0.00014716,2]
[341910169,1731279038275,-500.0,0.00014716,2]
[341910170,1731279038284,-159.25303912,0.00014716,2]
[341910171,1731279038293,-500.0,0.00014717,2]
[341910172,1731279038303,-500.0,0.00014717,2]
[341910173,1731279038312,-500.0,0.00014717,2]
[341910174,1731279038321,-500.0,0.00014717,2]
[341910175,1731279038331,-500.0,0.00014717,2]
[341910176,1731279038340,-593.3,0.00014717,2]
[341910177,1731279038349,-593.3,0.00014717,2]
[341910178,1731279038359,-593.3,0.00014717,2]
[341910179,1731279038368,-805.05,0.00014717,2]
[341910180,1731279038378,-805.05,0.00014717,2]
[341910181,1731279038387,-805.05,0.00014717,2]
[341910182,1731279038396,-805.05,0.00014717,2]
[341910183,1731279038405,-4385.91,0.00014717,2]
[341910184,1731279038414,-4385.91,0.00014717,2]
[341910185,1731279038424,-4385.91,0.00014717,2]
[341910186,1731279038433,-943.16765948,0.00014717,2]
[341910187,1731279038471,-803.956596,0.00014717,2]
[341910188,1731279038482,-2638.78574452,0.00014717,2]
[341910189,1731279038492,-500.0,0.00014717,2]
[341910190,1731279038502,-500.0,0.00014717,2]
[341910191,1731279038511,-500.0,0.00014717,2]
[341910192,1731279038520,-571.60139476,0.00014717,2]
[341910193,1731279038529,-2275.64,0.00014717,2]
[341910194,1731279038539,-2275.64,0.00014717,2]
[341910195,1731279038547,-2275.64,0.00014717,2]
[341910196,1731279038556,-500.0,0.00014717,2]
[341910197,1731279038565,-500.0,0.00014717,2]
[341910198,1731279038574,-205.89710315,0.00014717,2]
[341910199,1731279038590,-294.10289685,0.00014717,2]
[341910200,1731279038599,-500.0,0.00014717,2]
[341910202,1731279038608,-14.26710315,0.00014717,2]
[341910204,1731279038621,-267.44568959,0.00014717,2]
[341910205,1731279038631,-1732.47,0.00014717,2]
[341910207,1731279038640,-1732.47,0.00014717,2]
[341910209,1731279038649,-1732.47,0.00014717,2]
[341910210,1731279038659,-500.0,0.00014717,2]
[341910212,1731279038668,-500.0,0.00014717,2]
[341910215,1731279038677,-500.0,0.00014717,2]
[341910217,1731279038686,-500.0,0.00014717,2]
[341910219,1731279038696,-500.0,0.00014717,2]
[341910221,1731279038705,-500.0,0.00014717,2]
[341910223,1731279038714,-500.0,0.00014717,2]
[341910225,1731279038723,-500.0,0.00014717,2]
[341910227,1731279038732,-1824.39,0.00014717,2]
[341910229,1731279038741,-1824.39,0.00014717,2]
[341910231,1731279038751,-1824.39,0.00014717,2]
[341910233,1731279038760,-1824.39,0.00014717,2]
[341910235,1731279038769,-500.0,0.00014717,2]
[341910237,1731279038778,-307.70431178,0.00014717,2]
[341910239,1731279038788,-426.22825879,0.00014717,2]
[341910241,1731279038797,-910.15,0.00014718,2]
[341910243,1731279038807,-500.0,0.00014718,2]
[341910245,1731279038816,-500.0,0.00014718,2]
[341910247,1731279038825,-500.0,0.00014718,2]
[341910249,1731279038834,-500.0,0.00014718,2]
[341910251,1731279038843,-500.0,0.00014718,2]
[341910253,1731279038852,-500.0,0.00014718,2]
[341910255,1731279038861,-288.67556912,0.00014718,2]
[341910257,1731279038870,-151.0,0.00014718,2]
[341910259,1731279038879,-500.0,0.00014718,2]
[341910261,1731279038888,-500.0,0.00014718,2]
[341910263,1731279038898,-500.0,0.00014718,2]
[341910265,1731279038907,-593.3,0.00014718,2]
[341910267,1731279038916,-593.3,0.00014718,2]
[341910269,1731279038925,-593.3,0.00014718,2]
[341910271,1731279038934,-593.3,0.00014718,2]
[341910273,1731279038943,-805.05,0.00014718,2]
[341910275,1731279038952,-805.05,0.00014718,2]
[341910277,1731279038964,-805.05,0.00014718,2]
[341910279,1731279038974,-4385.91,0.00014718,2]
[341910281,1731279038983,-4385.91,0.00014718,2]
[341910283,1731279038992,-4385.91,0.00014718,2]
[341910285,1731279039002,-276.942496,0.00014718,2]
[341910287,1731279039012,-276.942496,0.00014718,2]
[341910289,1731279039021,-154.988057,0.00014718,2]
[341910291,1731279039030,-2275.64,0.00014718,2]
[341910293,1731279039040,-2275.64,0.00014718,2]
[341910295,1731279039049,-2275.64,0.00014718,2]
[341910297,1731279039058,-2275.64,0.00014718,2]
[341910299,1731279039067,-500.0,0.00014718,2]
[341910301,1731279039075,-500.0,0.00014718,2]
[341910303,1731279039084,-500.0,0.00014718,2]
[341910305,1731279039094,-500.0,0.00014718,2]
[341910307,1731279039103,-1732.47,0.00014718,2]
[341910309,1731279039112,-1732.47,0.00014718,2]
[341910311,1731279039121,-1732.47,0.00014718,2]
[341910313,1731279039132,-1732.47,0.00014718,2]
[341910314,1731279039141,-445.74307817,0.00014718,2]
[341910316,1731279039152,-500.0,0.00014718,2]
[341910318,1731279039161,-500.0,0.00014718,2]
[341910320,1731279039169,-500.0,0.00014718,2]
[341910322,1731279039179,-1824.39,0.00014718,2]
[341910324,1731279039187,-1824.39,0.00014718,2]
[341910326,1731279039196,-931.29,0.00014719,2]
[341910328,1731279039205,-910.15,0.00014719,2]
[341910330,1731279039215,-931.29,0.00014719,2]
[341910332,1731279039224,-931.29,0.00014719,2]
[341910335,1731279039234,-931.29,0.00014719,2]
[341910337,1731279039244,-931.29,0.00014719,2]
[341910339,1731279039253,-593.3,0.00014719,2]
[341910340,1731279039262,-805.05,0.00014719,2]
[341910342,1731279039272,-805.05,0.00014719,2]
[341910344,1731279039281,-276.942496,0.00014719,2]
[341910346,1731279039289,-276.942496,0.00014719,2]
[341910348,1731279039298,-276.942496,0.00014719,2]
[341910350,1731279039307,-276.942496,0.00014719,2]
[341910352,1731279039316,-2275.64,0.00014719,2]
[341910354,1731279039325,-500.0,0.00014719,2]
[341910356,1731279039334,-1732.47,0.00014719,2]
[341910358,1731279039343,-500.0,0.00014719,2]
[341910360,1731279039352,-500.0,0.00014719,2]
[341910362,1731279039360,-931.29,0.0001472,2]
[341910364,1731279039369,-931.29,0.0001472,2]
[341910366,1731279039378,-500.0,0.0001472,2]
[341910368,1731279039387,-4385.91,0.0001472,2]
[341910370,1731279039396,-276.942496,0.0001472,2]
[341910372,1731279039405,-276.942496,0.0001472,2]
[341910374,1731279039414,-286.54304948,0.00014743,2]
[341910376,1731279039423,-1824.39,0.00014743,2]
[341910378,1731279039433,-910.15,0.00014744,2]
[341910380,1731279039442,-382.41963834,0.00014744,2]
[341910382,1731279039454,-548.87036166,0.00014744,2]
[341910384,1731279039462,-593.3,0.00014744,2]
[341910386,1731279039472,-2275.64,0.00014744,2]
[341910388,1731279039481,-500.0,0.00014744,2]
[341910390,1731279039490,-1417.90053834,0.00014744,2]
[341910393,1731279039504,-314.56946166,0.00014744,2]
[341910395,1731279039513,-286.54304948,0.00014774,2]
[341910397,1731279039522,-22.95748888,0.00014786,2]
[341910399,1731279039533,-171.01515252,0.00014786,2]
[341910401,1731279039542,-805.05,0.00014786,2]
[341910403,1731279039551,-231.85984748,0.00014786,2]
[341910405,1731279039562,-4154.05015252,0.00014786,2]
[341910407,1731279039571,-500.0,0.00014786,2]
[341910409,1731279039580,-1824.39,0.00014786,2]
[341910411,1731279039589,-910.15,0.00014787,2]
[341910413,1731279039598,-910.15,0.00014787,2]
[341910415,1731279039607,-931.29,0.00014787,2]
[341910417,1731279039616,-593.3,0.00014787,2]
[341910419,1731279039625,-593.3,0.00014787,2]
[341910421,1731279039634,-805.05,0.00014787,2]
[341910423,1731279039643,-805.05,0.00014787,2]
[341910425,1731279039652,-4385.91,0.00014787,2]
[341910427,1731279039661,-4385.91,0.00014787,2]
[341910429,1731279039670,-276.942496,0.00014787,2]
[341910431,1731279039679,-276.942496,0.00014787,2]
[341910433,1731279039688,-2275.64,0.00014787,2]
[341910435,1731279039697,-2275.64,0.00014787,2]
[341910437,1731279039706,-500.0,0.00014787,2]
[341910439,1731279039715,-500.0,0.00014787,2]
[341910441,1731279039724,-1732.47,0.00014787,2]
[341910442,1731279039733,-1732.47,0.00014787,2]
[341910445,1731279039742,-500.0,0.00014787,2]
[341910446,1731279039753,-500.0,0.00014787,2]
[341910449,1731279039762,-1824.39,0.00014787,2]
[341910451,1731279039772,-910.15,0.00014788,2]
[341910454,1731279039781,-931.29,0.00014788,2]
[341910456,1731279039791,-931.29,0.00014788,2]
[341910460,1731279039800,-931.29,0.00014788,2]
[341910461,1731279039809,-931.29,0.00014788,2]
[341910463,1731279039818,-931.29,0.00014788,2]
[341910465,1731279039827,-931.37771929,0.00014788,2]
[341910467,1731279039837,-593.3,0.00014788,2]
[341910469,1731279039846,-805.05,0.00014788,2]
[341910471,1731279039855,-4385.91,0.00014788,2]
[341910473,1731279039864,-276.942496,0.00014788,2]
[341910475,1731279039873,-276.942496,0.00014788,2]
[341910478,1731279039882,-2275.64,0.00014788,2]
[341910480,1731279039891,-500.0,0.00014788,2]
[341910483,1731279039900,-1732.47,0.00014788,2]
[341910485,1731279039909,-500.0,0.00014788,2]
[341910487,1731279039918,-1824.39,0.00014788,2]
[341910489,1731279039927,-1824.39,0.00014788,2]
[341910491,1731279039937,-910.15,0.00014789,2]
[341910493,1731279039945,-910.15,0.00014789,2]
[341910495,1731279039958,-593.3,0.00014789,2]
[341910497,1731279039967,-593.3,0.00014789,2]
[341910499,1731279039976,-805.05,0.00014789,2]
[341910501,1731279039985,-276.942496,0.00014789,2]
[341910502,1731279039995,-276.942496,0.00014789,2]
[341910505,1731279040005,-2275.64,0.00014789,2]
[341910507,1731279040014,-2275.64,0.00014789,2]
[341910509,1731279040023,-500.0,0.00014789,2]
[341910511,1731279040032,-500.0,0.00014789,2]
[341910512,1731279040043,-500.0,0.00014789,2]
[341910514,1731279040053,-1732.47,0.00014789,2]
[341910516,1731279040062,-1732.47,0.00014789,2]
[341910517,1731279040071,-500.0,0.00014789,2]
[341910518,1731279040081,-910.15,0.0001479,2]
[341910519,1731279040089,-593.3,0.0001479,2]
[341910520,1731279040098,-805.05,0.0001479,2]
[341910521,1731279040107,-4385.91,0.0001479,2]
[341910522,1731279040116,-276.942496,0.0001479,2]
[341910523,1731279040125,-276.942496,0.0001479,2]
[341910524,1731279040135,-2275.64,0.0001479,2]
[341910525,1731279040146,-500.0,0.0001479,2]
[341910526,1731279040155,-1732.47,0.0001479,2]
[341910527,1731279040163,-500.0,0.0001479,2]
[341910528,1731279040173,-863.0,0.000148,5]
[341910529,1731279040182,-286.54304948,0.00014805,2]
[341910530,1731279040191,-1824.39,0.00014819,2]
[341910531,1731279040201,-286.54304948,0.00014837,2]
[341910532,1731279040210,-170.2286238,0.00014838,2]
[341910533,1731279040219,-351.79,0.00014842,2]
[341910534,1731279040227,-910.15,0.00014848,2]
[341910535,1731279040236,-593.3,0.00014848,2]
[341910537,1731279040247,-805.05,0.00014848,2]
[341910539,1731279040260,-4385.91,0.00014848,2]
[341910541,1731279040270,-4385.91,0.00014848,2]
[341910542,1731279040278,-2275.64,0.00014848,2]
[341910543,1731279040288,-500.0,0.00014848,2]
[341910544,1731279040297,-1732.47,0.00014848,2]
[341910545,1731279040306,-500.0,0.00014848,2]
[341910547,1731279040315,-1824.39,0.00014848,2]
[341910549,1731279040324,-1824.39,0.00014848,2]
[341910551,1731279040333,-500.0,0.00014848,2]
[341910553,1731279040342,-500.0,0.00014848,2]
[341910555,1731279040351,-500.0,0.00014848,2]
[341910557,1731279040361,-500.0,0.00014848,2]
[341910559,1731279040369,-500.0,0.00014848,2]
[341910561,1731279040378,-294.12486792,0.00014848,2]
[341910563,1731279040388,-910.15,0.00014849,2]
[341910565,1731279040397,-910.15,0.00014849,2]
[341910567,1731279040406,-910.15,0.00014849,2]
[341910569,1731279040415,-910.15,0.00014849,2]
[341910571,1731279040425,-910.15,0.00014849,2]
[341910573,1731279040435,-910.15,0.00014849,2]
[341910575,1731279040444,-910.17197881,0.00014849,2]
[341910577,1731279040454,-593.3,0.00014849,2]
[341910578,1731279040463,-593.3,0.00014849,2]
[341910580,1731279040472,-593.3,0.00014849,2]
[341910582,1731279040481,-593.3,0.00014849,2]
[341910584,1731279040490,-593.3,0.00014849,2]
[341910586,1731279040504,-593.3,0.00014849,2]
[341910588,1731279040514,-593.52773647,0.00014849,2]
[341910590,1731279040523,-805.05,0.00014849,2]
[341910592,1731279040532,-805.05,0.00014849,2]
[341910594,1731279040541,-805.05,0.00014849,2]
[341910596,1731279040550,-805.05,0.00014849,2]
[341910599,1731279040560,-805.05,0.00014849,2]
[341910601,1731279040569,-805.05,0.00014849,2]
[341910603,1731279040579,-805.07751039,0.00014849,2]
[341910605,1731279040589,-4385.91,0.00014849,2]
[341910606,1731279040598,-4385.91,0.00014849,2]
[341910609,1731279040608,-4385.91,0.00014849,2]
[341910610,1731279040617,-4385.91,0.00014849,2]
[341910612,1731279040627,-4385.91,0.00014849,2]
[341910614,1731279040636,-4385.91,0.00014849,2]
[341910616,1731279040646,-4386.11445803,0.00014849,2]
[341910618,1731279040655,-276.942496,0.00014849,2]
[341910620,1731279040663,-276.942496,0.00014849,2]
[341910622,1731279040672,-276.942496,0.00014849,2]
[341910624,1731279040681,-276.942494,0.00014849,2]
[341910626,1731279040690,-2275.64,0.00014849,2]
[341910628,1731279040699,-2275.64,0.00014849,2]
[341910630,1731279040708,-2275.64,0.00014849,2]
[341910632,1731279040718,-2275.64,0.00014849,2]
[341910634,1731279040727,-2275.64,0.00014849,2]
[341910636,1731279040737,-2275.64,0.00014849,2]
[341910638,1731279040749,-2275.86160446,0.00014849,2]
[341910640,1731279040757,-178.94334215,0.00014849,2]
[341910642,1731279040766,-1732.47,0.00014849,2]
[341910644,1731279040775,-1732.47,0.00014849,2]
[341910646,1731279040785,-1732.47,0.00014849,2]
[341910648,1731279040794,-1732.47,0.00014849,2]
[341910650,1731279040804,-1732.47,0.00014849,2]
[341910652,1731279040814,-1732.47,0.00014849,2]
[341910654,1731279040823,-1732.68574903,0.00014849,2]
[341910656,1731279040832,-500.0,0.00014849,2]
[341910658,1731279040841,-159.74602832,0.00014849,2]
[341910660,1731279040850,-1824.39,0.00014849,2]
[341910662,1731279040859,-1824.39,0.00014849,2]
[341910664,1731279040868,-1824.39,0.00014849,2]
[341910666,1731279040877,-1824.39,0.00014849,2]
[341910668,1731279040886,-1824.39,0.00014849,2]
[341910670,1731279040895,-1824.39,0.00014849,2]
[341910672,1731279040904,-1824.39,0.00014849,2]
[341910674,1731279040913,-1824.58937758,0.00014849,2]
[341910676,1731279040922,-286.54304948,0.00014868,2]
[341910678,1731279040932,-286.54304948,0.00014899,2]
[341910680,1731279040941,-203.504344,0.000149,2]
[341910682,1731279040950,-308.55144334,0.000149,2]
[341910684,1731279040962,-1091.0,0.00014955,2]
[341910686,1731279040971,-240.417,0.00014955,2]
[341910688,1731279040980,-500.0,0.00014973,2]
[341910690,1731279040988,-500.0,0.00014973,2]
[341910712,1731279041189,-500.0,0.00014973,2]
[341910714,1731279041199,-500.0,0.00014973,2]
[341910716,1731279041208,-565.7877952,0.00014988,2]
[341910718,1731279041217,-170.2286238,0.0001499,2]
[341910720,1731279041227,-170.2286238,0.0001499,2]
[341910722,1731279041236,-170.2286238,0.0001499,2]
[341910724,1731279041246,-170.2286238,0.0001499,2]
[341910726,1731279041255,-521.0,0.0001499,2]
[341910728,1731279041264,-150.0,0.0001499,2]
[341910730,1731279041273,-501.7289992,0.0001499,2]
[341910732,1731279041282,-437.6702032,0.0001499,2]
[341910734,1731279041291,-373.6114073,0.0001499,2]
[341910735,1731279041301,-309.5526113,0.0001499,2]
[341910738,1731279041310,-500.0,0.0001499,2]
[341910740,1731279041319,-152.50335894,0.0001499,2]
[341910741,1731279041328,-437127.62598905,0.00015,2]
[341910744,1731279041338,-11372.25496518,0.00015,2]
[341910745,1731279041347,-33298.98515404,0.00015,2]
[341910771,1731279041572,-500.0,0.00014716,2]
[341910773,1731279041581,-388.73200026,0.00014716,2]
[341910775,1731279041591,-10511.16799974,0.00015,2]
[341910778,1731279041610,-150.0,0.00014955,2]
[341910780,1731279041619,-104.294,0.00015,2]
[341910782,1731279041630,-309.035,0.00015,2]
[341910784,1731279041641,-316.79936008,0.00015,2]
[341910786,1731279041652,-1678.005,0.00015,2]
[341910967,1731279043415,-37843.856025,0.00015,2]
[341910969,1731279043427,-752.134767,0.00015,2]
[341910978,1731279043567,-1140.1152865,0.00015,2]
[341911078,1731279046222,-63351.7914,0.00015,2]
[341911079,1731279046235,-102873.55146989,0.00015,2]
[341911080,1731279046248,-13435.48520719,0.00015,2]
[341911081,1731279046261,-53217.7935,0.00015,2]
[341911082,1731279046385,-8823000.0,0.00015,2]
[341911088,1731279091162,-48405.61800001,0.00015,2]
[341911089,1731279091173,-10477.447491,0.00015,2]
[341911090,1731279091184,-10880.3004,0.00015,2]
[341911091,1731279091195,-1611.4,0.00015,2]
[341911092,1731279091207,-47288.69545068,0.00015,2]
[341911093,1731279091218,-5969.0436591,0.00015,2]
[341911094,1731279091239,-5705.12497394,0.00015,2]
[341911095,1731279092832,458.0,0.00016,90]
[341911110,1731279278273,1094.67,0.00011965,2]
[341911131,1731280027489,1039.93,0.00011794,2]
[341911143,1731280232209,-946.13,0.00013605,2]
[341911144,1731280232218,-181.48047977,0.00013641,2]
[341911145,1731280232228,-168.98,0.00013654,2]
[341911146,1731280232237,-150.0,0.00013741,2]
[341911147,1731280232246,-300.0,0.00013741,2]
[341911148,1731280232255,-142546.38472051,0.00013742,2]
[341911149,1731280232372,-588.90327259,0.00013742,2]
[341911150,1731280232548,-2054.12650898,0.00013742,2]
[341911164,1731280238232,-4016.25931252,0.00013742,2]
[341911165,1731280238243,-4930.4779826,0.00013742,2]
[341911166,1731280238254,-1668.91372711,0.00013742,2]
[341911167,1731280238345,-543.0781032,0.00013742,2]
[341911168,1731280238440,-35622.28648449,0.00013742,2]
[341911169,1731280238456,-250.0,0.00013742,2]
[341911170,1731280238465,-173.4,0.00013751,2]
[341911171,1731280238474,-1000.0,0.00013752,2]
[341911172,1731280238483,-322.85,0.00013761,2]
[341911173,1731280238493,-250.0,0.00013789,2]
[341911174,1731280238503,-500.0,0.00013797,2]
[341911175,1731280238512,-8092.48,0.00013804,2]
[341911176,1731280238522,-2471.86,0.00013804,2]
[341911177,1731280238531,-1840.13,0.00013804,2]
[341911178,1731280238541,-680.05,0.00013804,2]
[341911179,1731280238550,-307.52,0.00013896,2]
[341911180,1731280238559,-785.76,0.00013896,2]
[341911181,1731280238569,-1039.93,0.00014057,2]
[341911182,1731280238578,-477.15,0.00014262,2]
[341911183,1731280238587,-240.417,0.00014634,2]
[341911184,1731280238597,-1159.0,0.00014634,2]
[341911185,1731280238606,-1091.0,0.00014634,2]
[341911186,1731280238616,-173.4,0.00014668,2]
[341911187,1731280238625,-3550.854,0.00014687,2]
[341911188,1731280238634,-327.70970711,0.00014707,2]
[341911189,1731280238643,-290.6590436,0.00014715,2]
[341911190,1731280238652,-500.0,0.00014715,2]
[341911191,1731280238661,-500.0,0.00014715,2]
[341911192,1731280238670,-500.0,0.00014715,2]
[341911193,1731280238679,-500.0,0.00014715,2]
[341911194,1731280238689,-500.0,0.00014715,2]
[341911195,1731280238701,-500.0,0.00014715,2]
[341911196,1731280238711,-500.0,0.00014715,2]